fUSD/lending_fUSD_20250126
["ID","MTS","AMOUNT","RATE_DAILY","PERIOD"]
[350499318,1737928243687,-513.88289378,0.00011999,2]
[350499320,1737928243696,-500.0,0.00011999,2]
[350499322,1737928243705,-500.0,0.00011999,2]
[350499324,1737928243715,-500.0,0.00011999,2]
[350499326,1737928243724,-500.0,0.00011999,2]
[350499328,1737928243733,-595.54,0.00011999,2]
[350499330,1737928243742,-500.0,0.00011999,2]
[350499332,1737928243751,-500.0,0.00011999,2]
[350499333,1737928243760,-500.0,0.00011999,2]
[350499336,1737928243770,-500.0,0.00011999,2]
[350499338,1737928243779,-404.75,0.00011999,2]
[350499340,1737928243789,-500.0,0.00011999,2]
[350499341,1737928243798,-197.62,0.00011999,2]
[350499344,1737928243808,-500.0,0.00011999,2]
[350499346,1737928243818,-500.0,0.00011999,2]
[350499348,1737928243827,-500.0,0.00011999,2]
[350499350,1737928243837,-495.074301,0.00011999,2]
[350499352,1737928243846,-500.0,0.00011999,2]
[350499354,1737928243856,-495.074301,0.00011999,2]
[350499356,1737928243865,-318.15,0.00011999,2]
[350499358,1737928243874,-495.074301,0.00011999,2]
[350499360,1737928243884,-500.0,0.00011999,2]
[350499362,1737928243894,-500.0,0.00011999,2]
[350499364,1737928243903,-500.0,0.00011999,2]
[350499366,1737928243913,-500.0,0.00011999,2]
[350499368,1737928243922,-500.0,0.00011999,2]
[350499370,1737928243932,-500.0,0.00011999,2]
[350499372,1737928243941,-500.0,0.00011999,2]
[350499374,1737928243950,-500.0,0.00011999,2]
[350499376,1737928243959,-500.0,0.00011999,2]
[350499378,1737928243969,-500.0,0.00011999,2]
[350499380,1737928243979,-500.0,0.00011999,2]
[350499382,1737928243989,-500.0,0.00011999,2]
[350499384,1737928244000,-500.0,0.00011999,2]
[350499386,1737928244010,-500.0,0.00011999,2]
[350499388,1737928244020,-509.59,0.00011999,2]
[350499390,1737928244030,-500.0,0.00011999,2]
[350499392,1737928244040,-500.0,0.00011999,2]
[350499394,1737928244050,-500.0,0.00011999,2]
[350499396,1737928244059,-500.0,0.00011999,2]
[350499398,1737928244069,-500.0,0.00011999,2]
[350499400,1737928244078,-500.0,0.00011999,2]
[350499402,1737928244088,-500.0,0.00011999,2]
[350499404,1737928244098,-500.0,0.00011999,2]
[350499406,1737928244107,-500.0,0.00011999,2]
[350499408,1737928244117,-500.0,0.00011999,2]
[350499409,1737928244126,-500.0,0.00011999,2]
[350499410,1737928244135,-500.0,0.00011999,2]
[350499411,1737928244144,-500.0,0.00011999,2]
[350499412,1737928244154,-355.64,0.00011999,2]
[350499413,1737928244163,-500.0,0.00011999,2]
[350499414,1737928244172,-500.0,0.00011999,2]
[350499415,1737928244181,-500.0,0.00011999,2]
[350499416,1737928244190,-500.0,0.00011999,2]
[350499417,1737928244199,-500.0,0.00011999,2]
[350499418,1737928244208,-500.0,0.00011999,2]
[350499419,1737928244218,-7020.31756526,0.00011999,2]
[350499420,1737928244227,-500.0,0.00011999,2]
[350499422,1737928244236,-500.0,0.00011999,2]
[350499424,1737928244246,-500.0,0.00011999,2]
[350499426,1737928244255,-500.0,0.00011999,2]
[350499428,1737928244265,-500.0,0.00011999,2]
[350499430,1737928244275,-500.0,0.00011999,2]
[350499432,1737928244284,-500.0,0.00011999,2]
[350499434,1737928244294,-500.0,0.00011999,2]
[350499436,1737928244303,-500.0,0.00011999,2]
[350499438,1737928244313,-500.0,0.00011999,2]
[350499440,1737928244322,-500.0,0.00011999,2]
[350499442,1737928244331,-500.0,0.00011999,2]
[350499444,1737928244341,-500.0,0.00011999,2]
[350499446,1737928244350,-500.0,0.00011999,2]
[350499448,1737928244359,-500.0,0.00011999,2]
[350499450,1737928244370,-500.0,0.00011999,2]
[350499453,1737928244379,-480.59,0.00011999,2]
[350499455,1737928244391,-500.0,0.00011999,2]
[350499457,1737928244403,-500.0,0.00011999,2]
[350499459,1737928244412,-500.0,0.00011999,2]
[350499461,1737928244422,-362.27,0.00011999,2]
[350499463,1737928244432,-500.0,0.00011999,2]
[350499466,1737928244442,-500.0,0.00011999,2]
[350499469,1737928244452,-500.0,0.00011999,2]
[350499471,1737928244462,-500.0,0.00011999,2]
[350499473,1737928244474,-171.03,0.00011999,2]
[350499475,1737928244483,-500.0,0.00011999,2]
[350499477,1737928244493,-500.0,0.00011999,2]
[350499479,1737928244503,-500.0,0.00011999,2]
[350499483,1737928244514,-500.0,0.00011999,2]
[350499485,1737928244523,-500.0,0.00011999,2]
[350499487,1737928244532,-500.0,0.00011999,2]
[350499489,1737928244542,-500.0,0.00011999,2]
[350499491,1737928244551,-500.0,0.00011999,2]
[350499493,1737928244561,-500.0,0.00011999,2]
[350499495,1737928244570,-500.0,0.00011999,2]
[350499497,1737928244580,-500.0,0.00011999,2]
[350499499,1737928244589,-500.0,0.00011999,2]
[350499501,1737928244599,-500.0,0.00011999,2]
[350499504,1737928244608,-500.0,0.00011999,2]
[350499507,1737928244619,-500.0,0.00011999,2]
[350499510,1737928244628,-500.0,0.00011999,2]
[350499513,1737928244637,-500.0,0.00011999,2]
[350499516,1737928244647,-595.0,0.00012,2]
[350499519,1737928244656,-247.06,0.00012,2]
[350499521,1737928244665,-739911.82070644,0.00012,2]
[350499579,1737928244971,-1403.74231279,0.00012,2]
[350499581,1737928244983,-403.21492514,0.00012,2]
[350499589,1737928245056,-277.68716279,0.00011999,2]
[350499594,1737928245091,-222.31283721,0.00011999,2]
[350499596,1737928245100,-409.29281261,0.00011999,2]
[350499662,1737928245687,-150.0,0.00011897,2]
[350499664,1737928245697,-269.229999,0.00011994,2]
[350499666,1737928245709,-210.70686167,0.00011994,2]
[350499668,1737928245720,-500.0,0.00011995,2]
[350499670,1737928245730,-500.0,0.00011996,2]
[350499673,1737928245740,-500.0,0.00011998,2]
[350499675,1737928245750,-90.70718739,0.00011999,2]
[350499677,1737928245760,-500.0,0.00011999,2]
[350499679,1737928245770,-500.0,0.00011999,2]
[350499681,1737928245779,-500.0,0.00011999,2]
[350499683,1737928245789,-600.39,0.00011999,2]
[350499685,1737928245800,-4037.9680523,0.00012,2]
[350499687,1737928245812,-1047.5,0.00012,2]
[350499690,1737928245826,-1226.27475037,0.00012,2]
[350499698,1737928245898,-205.472,0.00011897,2]
[350499700,1737928245909,-500.0,0.00011996,2]
[350499702,1737928245919,-17996.13848,0.00012,2]
[350499703,1737928245932,-2379.61555635,0.00012,2]
[350499704,1737928245945,-421.56144,0.00012,2]
[350499705,1737928246017,-500.0,0.00011996,2]
[350499706,1737928246028,-20451.96079535,0.00012,2]
[350499707,1737928246038,-4707.42560464,0.00012,2]
[350499708,1737928246051,-5019.41232005,0.00012,2]
[350499709,1737928246118,-255.5359996,0.00012,2]
[350499723,1737928246285,-1030.77718655,0.00012,2]
[350499726,1737928246299,-5002.8,0.00012,2]
[350499738,1737928246411,-824.83457944,0.00012,2]
[350499746,1737928246470,-1053.3523,0.00012,2]
[350499748,1737928246485,-23510.95771377,0.00012,2]
[350499760,1737928246588,-2325.9299925,0.00012,2]
[350499768,1737928246647,-628.59374901,0.00012,2]
[350499770,1737928246661,-825.25967999,0.00012,2]
[350499841,1737928440330,236.33,9.095e-05,2]
[350499845,1737929102318,250.06,0.00016658,30]
[350499846,1737929219203,-455.3100772,0.00010672,2]
[350499849,1737929370608,232.16,8.722e-05,2]
[350499850,1737929373074,-2467.66185464,0.00010596,2]
[350499858,1737929431428,-84.75814536,0.00010596,2]
[350499859,1737929431438,-252.0,0.00010634,2]
[350499860,1737929431448,-3472.0499228,0.00010672,2]
[350499861,1737929431458,-174.77,0.00010684,2]
[350499862,1737929431467,-1401.07,0.00010696,2]
[350499863,1737929431477,-250.0,0.00010696,2]
[350499864,1737929431487,-153.49,0.00010718,2]
[350499865,1737929431496,-37.85588197,0.00010725,2]
[350499866,1737929431509,-313.98411803,0.00010725,2]
[350499867,1737929431518,-200.0,0.00010734,2]
[350499868,1737929431528,-1000.0,0.00010768,2]
[350499869,1737929431538,-300.0,0.00010845,2]
[350499870,1737929431548,-241.26588202,0.00010847,2]
[350499871,1737929431561,-890.85411798,0.00010847,2]
[350499872,1737929431571,-500.0,0.00010932,2]
[350499873,1737929431581,-232.16,0.00010986,2]
[350499874,1737929431591,-150.0,0.00011044,2]
[350499875,1737929431600,-250.72,0.00011045,2]
[350499876,1737929431610,-253.54,0.00011045,2]
[350499877,1737929431619,-252.18,0.00011045,2]
[350499878,1737929431629,-254.82,0.00011045,2]
[350499879,1737929431638,-248.04,0.00011045,2]
[350499880,1737929431648,-253.39,0.00011045,2]
[350499881,1737929431658,-248.2,0.00011045,2]
[350499882,1737929431668,-245.68,0.00011045,2]
[350499883,1737929431678,-248.14,0.00011045,2]
[350499884,1737929431688,-247.6,0.00011045,2]
[350499885,1737929431698,-245.88,0.00011045,2]
[350499886,1737929431707,-250.07,0.00011045,2]
[350499887,1737929431717,-249.04,0.00011045,2]
[350499888,1737929431726,-245.2,0.00011045,2]
[350499889,1737929431736,-252.81,0.00011045,2]
[350499890,1737929431746,-253.4,0.00011045,2]
[350499891,1737929431755,-250.14,0.00011045,2]
[350499892,1737929431765,-249.58,0.00011045,2]
[350499893,1737929431775,-174.78,0.00011087,2]
[350499894,1737929431785,-150.0,0.000111,2]
[350499895,1737929431794,-150.0,0.000111,2]
[350499896,1737929431804,-438.07,0.000111,2]
[350499897,1737929431814,-150.0,0.000111,2]
[350499898,1737929431823,-438.07,0.000111,2]
[350499899,1737929431833,-150.0,0.000111,2]
[350499900,1737929431843,-309.65,0.00011115,2]
[350499901,1737929431853,-250.54,0.00011135,2]
[350499902,1737929431862,-252.02,0.00011169,2]
[350499903,1737929431872,-438.07,0.00011178,2]
[350499904,1737929431882,-291.95,0.00011178,2]
[350499905,1737929431892,-301.37,0.00011178,2]
[350499906,1737929431902,-150.68,0.00011178,2]
[350499907,1737929431912,-150.0,0.00011178,2]
[350499908,1737929431921,-155.13,0.00011178,2]
[350499909,1737929431931,-150.0,0.00011178,2]
[350499910,1737929431940,-438.07,0.00011178,2]
[350499911,1737929431950,-150.0,0.00011178,2]
[350499912,1737929431960,-150.0,0.00011178,2]
[350499913,1737929431969,-245.8,0.00011179,2]
[350499914,1737929431979,-253.22,0.00011179,2]
[350499915,1737929431988,-253.39,0.00011179,2]
[350499916,1737929431998,-247.32,0.00011179,2]
[350499917,1737929432008,-170.58,0.00011213,2]
[350499918,1737929432017,-46146.0,0.000114,2]
[350499919,1737929432027,-5559.0,0.000117,3]
[350499920,1737929432037,-1176.0,0.00011764,2]
[350499921,1737929432046,-150.0,0.00011764,2]
[350499922,1737929432056,-3903.0,0.00011764,2]
[350499923,1737929432066,-500.0,0.00011772,2]
[350499925,1737929432075,-1200.0,0.00011772,2]
[350499927,1737929432085,-247.11,0.00011772,2]
[350499929,1737929432097,-1000.0,0.000118,2]
[350499930,1737929432112,-2915.1629,0.000118,2]
[350499932,1737929432121,-6333.82402427,0.00011804,2]
[350499934,1737929432131,-6333.82402427,0.00011815,2]
[350499936,1737929432140,-6333.82402427,0.00011825,2]
[350499938,1737929432150,-200.0,0.00011828,2]
[350499940,1737929432160,-154.34242263,0.00011836,2]
[350499941,1737929432169,-6333.82402427,0.00011836,2]
[350499944,1737929432179,-524.3207277,0.00011836,2]
[350499946,1737929432189,-200.0,0.00011842,2]
[350499948,1737929432198,-524.3207277,0.00011845,2]
[350499950,1737929432207,-6333.82402427,0.00011847,2]
[350499952,1737929432216,-200.0,0.00011849,2]
[350499954,1737929432226,-200.0,0.00011853,2]
[350499956,1737929432235,-200.0,0.00011855,2]
[350499958,1737929432244,-6333.82402427,0.00011857,2]
[350499960,1737929432254,-200.0,0.00011862,2]
[350499961,1737929432264,-524.3207277,0.00011864,2]
[350499963,1737929432274,-6333.82402427,0.00011868,2]
[350499966,1737929432283,-200.0,0.0001187,2]
[350499967,1737929432292,-171.62523418,0.00011872,2]
[350499970,1737929432302,-200.0,0.00011872,2]
[350499972,1737929432312,-6333.82402427,0.00011879,2]
[350499973,1737929432321,-171.62523414,0.00011879,2]
[350499976,1737929432331,-1968.2739,0.0001188,2]
[350499978,1737929432340,-200.0,0.00011883,2]
[350499979,1737929432350,-171.62523414,0.00011886,2]
[350499981,1737929432360,-6333.82402427,0.00011889,2]
[350499983,1737929432369,-171.62523414,0.00011893,2]
[350499986,1737929432379,-698.9424,0.00011895,2]
[350499988,1737929432388,-2618.50926985,0.00011896,2]
[350499990,1737929432397,-2618.50926983,0.00011896,2]
[350499991,1737929432407,-150.217,0.00011897,2]
[350499994,1737929432417,-2618.50926983,0.00011897,2]
[350499996,1737929432427,-2618.50926983,0.00011897,2]
[350499997,1737929432437,-2618.50926983,0.00011898,2]
[350499998,1737929432446,-3566.385,0.00011898,2]
[350499999,1737929432455,-2618.50926983,0.00011898,2]
[350500000,1737929432464,-2618.50926983,0.00011899,2]
[350500001,1737929432474,-567.350589,0.00011899,2]
[350500002,1737929432484,-500.0,0.00011899,2]
[350500003,1737929432493,-500.0,0.00011899,2]
[350500004,1737929432503,-500.0,0.00011899,2]
[350500005,1737929432513,-500.0,0.00011899,2]
[350500006,1737929432523,-524.938037,0.00011899,2]
[350500007,1737929432532,-521.03,0.00011899,2]
[350500008,1737929432542,-500.0,0.00011899,2]
[350500009,1737929432551,-500.0,0.00011899,2]
[350500010,1737929432561,-500.0,0.00011899,2]
[350500011,1737929432570,-500.0,0.00011899,2]
[350500012,1737929432581,-500.0,0.00011899,2]
[350500013,1737929432591,-500.0,0.00011899,2]
[350500014,1737929432600,-500.0,0.00011899,2]
[350500015,1737929432610,-500.0,0.00011899,2]
[350500016,1737929432619,-500.0,0.00011899,2]
[350500017,1737929432629,-500.0,0.00011899,2]
[350500018,1737929432639,-500.0,0.00011899,2]
[350500019,1737929432648,-638.89,0.00011899,2]
[350500020,1737929432658,-500.0,0.00011899,2]
[350500021,1737929432667,-500.0,0.00011899,2]
[350500022,1737929432677,-500.0,0.00011899,2]
[350500023,1737929432686,-500.0,0.00011899,2]
[350500024,1737929432696,-500.0,0.00011899,2]
[350500025,1737929432705,-500.0,0.00011899,2]
[350500026,1737929432714,-500.0,0.00011899,2]
[350500027,1737929432723,-500.0,0.00011899,2]
[350500028,1737929432732,-500.0,0.00011899,2]
[350500029,1737929432743,-500.0,0.00011899,2]
[350500030,1737929432752,-500.0,0.00011899,2]
[350500031,1737929432762,-500.0,0.00011899,2]
[350500032,1737929432771,-500.0,0.00011899,2]
[350500033,1737929432781,-500.0,0.00011899,2]
[350500034,1737929432790,-500.0,0.00011899,2]
[350500035,1737929432800,-500.0,0.00011899,2]
[350500036,1737929432810,-500.0,0.00011899,2]
[350500037,1737929432819,-500.0,0.00011899,2]
[350500038,1737929432829,-500.0,0.00011899,2]
[350500039,1737929432838,-500.0,0.00011899,2]
[350500040,1737929432848,-629.54,0.00011899,2]
[350500041,1737929432858,-500.0,0.00011899,2]
[350500042,1737929432867,-500.0,0.00011899,2]
[350500043,1737929432877,-648.64,0.00011899,2]
[350500044,1737929432887,-500.0,0.00011899,2]
[350500045,1737929432896,-500.0,0.00011899,2]
[350500046,1737929432905,-500.0,0.00011899,2]
[350500047,1737929432914,-500.0,0.00011899,2]
[350500048,1737929432924,-500.0,0.00011899,2]
[350500049,1737929432933,-500.0,0.00011899,2]
[350500050,1737929432942,-500.0,0.00011899,2]
[350500051,1737929432953,-500.0,0.00011899,2]
[350500052,1737929432963,-500.0,0.00011899,2]
[350500053,1737929432972,-2618.50926983,0.00011899,2]
[350500054,1737929432982,-2618.50926983,0.000119,2]
[350500055,1737929432992,-246.73,0.000119,2]
[350500056,1737929433001,-27129.3167,0.000119,2]
[350500057,1737929433010,-345.17541414,0.000119,2]
[350500058,1737929433020,-435.87,0.000119,2]
[350500059,1737929433030,-150.0,0.000119,2]
[350500060,1737929433040,-150.0,0.000119,2]
[350500061,1737929433050,-441.133747,0.000119,2]
[350500062,1737929433060,-171.62523414,0.000119,2]
[350500063,1737929433071,-2618.50926983,0.000119,2]
[350500064,1737929433082,-6333.82402427,0.000119,2]
[350500065,1737929433093,-158.47563007,0.000119,2]
[350500066,1737929433107,-155.83119909,0.000119,2]
[350500067,1737929433117,-1854.35754737,0.000119,2]
[350500068,1737929433128,-30988.84516221,0.000119,2]
[350500069,1737929433139,-1063.873,0.00011904,2]
[350500070,1737929433150,-196.564,0.00011904,2]
[350500071,1737929433160,-200.0,0.00011913,2]
[350500072,1737929433171,-524.3207277,0.00011913,2]
[350500073,1737929433182,-524.3207277,0.00011915,2]
[350500074,1737929433193,-500.0,0.00011971,2]
[350500075,1737929433204,-500.0,0.00011971,2]
[350500076,1737929433214,-500.0,0.00011971,2]
[350500077,1737929433224,-500.0,0.00011971,2]
[350500078,1737929433234,-500.0,0.00011971,2]
[350500079,1737929433244,-500.0,0.00011971,2]
[350500080,1737929433254,-500.0,0.00011971,2]
[350500081,1737929433265,-500.0,0.00011971,2]
[350500082,1737929433274,-500.0,0.00011971,2]
[350500083,1737929433284,-500.0,0.00011971,2]
[350500084,1737929433294,-500.0,0.00011971,2]
[350500085,1737929433305,-500.0,0.00011971,2]
[350500086,1737929433314,-500.0,0.00011971,2]
[350500087,1737929433326,-500.0,0.00011971,2]
[350500088,1737929433336,-500.0,0.00011971,2]
[350500089,1737929433346,-500.0,0.00011971,2]
[350500090,1737929433356,-500.0,0.00011971,2]
[350500091,1737929433367,-500.0,0.00011971,2]
[350500092,1737929433377,-500.0,0.00011971,2]
[350500093,1737929433387,-500.0,0.00011971,2]
[350500094,1737929433397,-500.0,0.00011971,2]
[350500095,1737929433407,-500.0,0.00011971,2]
[350500096,1737929433418,-500.0,0.00011971,2]
[350500097,1737929433428,-500.0,0.00011971,2]
[350500098,1737929433438,-500.0,0.00011971,2]
[350500099,1737929433449,-500.0,0.00011971,2]
[350500100,1737929433458,-514.81,0.00011971,2]
[350500101,1737929433468,-500.0,0.00011971,2]
[350500102,1737929433479,-500.0,0.00011971,2]
[350500103,1737929433489,-500.0,0.00011971,2]
[350500104,1737929433499,-500.0,0.00011971,2]
[350500105,1737929433509,-500.0,0.00011971,2]
[350500106,1737929433519,-500.0,0.00011971,2]
[350500107,1737929433528,-500.0,0.00011971,2]
[350500108,1737929433538,-500.0,0.00011971,2]
[350500109,1737929433548,-500.0,0.00011971,2]
[350500110,1737929433558,-500.0,0.00011971,2]
[350500111,1737929433568,-500.0,0.00011971,2]
[350500112,1737929433579,-500.0,0.00011971,2]
[350500113,1737929433589,-500.0,0.00011971,2]
[350500114,1737929433598,-500.0,0.00011971,2]
[350500115,1737929433607,-500.0,0.00011972,2]
[350500116,1737929433617,-500.0,0.00011972,2]
[350500117,1737929433626,-500.0,0.00011972,2]
[350500118,1737929433636,-500.0,0.00011972,2]
[350500119,1737929433645,-500.0,0.00011972,2]
[350500120,1737929433654,-500.0,0.00011972,2]
[350500121,1737929433663,-500.0,0.00011972,2]
[350500122,1737929433673,-500.0,0.00011972,2]
[350500123,1737929433682,-500.0,0.00011972,2]
[350500124,1737929433691,-500.0,0.00011972,2]
[350500125,1737929433700,-500.0,0.00011972,2]
[350500126,1737929433709,-500.0,0.00011972,2]
[350500127,1737929433720,-168.76148206,0.00011972,2]
[350500128,1737929433729,-500.0,0.00011972,2]
[350500129,1737929433738,-500.0,0.00011972,2]
[350500130,1737929433748,-519.26311484,0.00011972,2]
[350500131,1737929433757,-500.0,0.00011972,2]
[350500132,1737929433766,-500.0,0.00011972,2]
[350500133,1737929433775,-500.0,0.00011972,2]
[350500134,1737929433783,-500.0,0.00011972,2]
[350500135,1737929433792,-500.0,0.00011972,2]
[350500136,1737929433801,-500.0,0.00011972,2]
[350500137,1737929433811,-500.0,0.00011972,2]
[350500138,1737929433820,-500.0,0.00011972,2]
[350500139,1737929433831,-500.0,0.00011972,2]
[350500140,1737929433841,-500.0,0.00011972,2]
[350500141,1737929433851,-500.0,0.00011972,2]
[350500142,1737929433861,-500.0,0.00011972,2]
[350500143,1737929433870,-500.0,0.00011972,2]
[350500144,1737929433879,-500.0,0.00011972,2]
[350500145,1737929433888,-500.0,0.00011972,2]
[350500146,1737929433897,-500.0,0.00011972,2]
[350500147,1737929433906,-500.0,0.00011972,2]
[350500148,1737929433916,-500.0,0.00011972,2]
[350500149,1737929433925,-500.0,0.00011972,2]
[350500150,1737929433935,-500.0,0.00011972,2]
[350500151,1737929433944,-500.0,0.00011972,2]
[350500152,1737929433953,-500.0,0.00011972,2]
[350500153,1737929433962,-500.0,0.00011972,2]
[350500154,1737929433972,-500.0,0.00011972,2]
[350500155,1737929433981,-500.0,0.00011972,2]
[350500156,1737929433991,-527.8,0.00011972,2]
[350500157,1737929434000,-539.2,0.00011972,2]
[350500158,1737929434009,-500.0,0.00011972,2]
[350500159,1737929434019,-500.0,0.00011972,2]
[350500160,1737929434028,-520.8,0.00011972,2]
[350500161,1737929434037,-500.0,0.00011972,2]
[350500162,1737929434046,-500.0,0.00011972,2]
[350500163,1737929434055,-500.0,0.00011972,2]
[350500164,1737929434065,-500.0,0.00011972,2]
[350500165,1737929434074,-500.0,0.00011972,2]
[350500166,1737929434083,-500.0,0.00011972,2]
[350500167,1737929434093,-500.0,0.00011972,2]
[350500168,1737929434104,-500.0,0.00011972,2]
[350500169,1737929434113,-500.0,0.00011972,2]
[350500170,1737929434123,-604.21,0.00011972,2]
[350500171,1737929434132,-619.31,0.00011972,2]
[350500172,1737929434142,-500.0,0.00011972,2]
[350500173,1737929434151,-500.0,0.00011972,2]
[350500174,1737929434160,-500.0,0.00011972,2]
[350500175,1737929434169,-500.0,0.00011972,2]
[350500176,1737929434180,-500.0,0.00011972,2]
[350500177,1737929434190,-500.0,0.00011972,2]
[350500178,1737929434198,-500.0,0.00011972,2]
[350500179,1737929434208,-500.0,0.00011972,2]
[350500180,1737929434217,-500.0,0.00011972,2]
[350500181,1737929434226,-500.0,0.00011972,2]
[350500182,1737929434235,-509.70414068,0.00011972,2]
[350500183,1737929434244,-500.0,0.00011972,2]
[350500184,1737929434254,-500.0,0.00011972,2]
[350500185,1737929434263,-500.0,0.00011972,2]
[350500186,1737929434272,-500.0,0.00011972,2]
[350500187,1737929434282,-500.0,0.00011972,2]
[350500188,1737929434292,-500.0,0.00011972,2]
[350500189,1737929434301,-500.0,0.00011972,2]
[350500190,1737929434311,-503.90743975,0.00011972,2]
[350500191,1737929434321,-500.0,0.00011972,2]
[350500192,1737929434331,-500.0,0.00011972,2]
[350500193,1737929434341,-500.0,0.00011972,2]
[350500194,1737929434351,-500.0,0.00011972,2]
[350500195,1737929434360,-500.0,0.00011972,2]
[350500196,1737929434370,-500.0,0.00011972,2]
[350500197,1737929434380,-500.0,0.00011972,2]
[350500198,1737929434389,-500.0,0.00011972,2]
[350500199,1737929434397,-500.0,0.00011972,2]
[350500200,1737929434406,-500.0,0.00011972,2]
[350500201,1737929434415,-500.0,0.00011972,2]
[350500202,1737929434425,-500.0,0.00011972,2]
[350500203,1737929434435,-500.0,0.00011972,2]
[350500204,1737929434445,-500.0,0.00011972,2]
[350500205,1737929434454,-500.0,0.00011972,2]
[350500206,1737929434463,-500.0,0.00011972,2]
[350500207,1737929434473,-500.0,0.00011972,2]
[350500208,1737929434482,-502.86962572,0.00011972,2]
[350500209,1737929434492,-505.78132252,0.00011972,2]
[350500210,1737929434501,-500.0,0.00011972,2]
[350500211,1737929434510,-169.14021046,0.00011972,2]
[350500212,1737929434520,-500.0,0.00011972,2]
[350500213,1737929434529,-500.0,0.00011972,2]
[350500214,1737929434538,-309.60589867,0.00011972,2]
[350500215,1737929434548,-500.0,0.00011972,2]
[350500216,1737929434557,-500.0,0.00011972,2]
[350500217,1737929434567,-500.0,0.00011972,2]
[350500218,1737929434577,-500.0,0.00011972,2]
[350500219,1737929434586,-500.0,0.00011972,2]
[350500220,1737929434596,-500.0,0.00011972,2]
[350500221,1737929434605,-500.0,0.00011972,2]
[350500222,1737929434614,-500.0,0.00011972,2]
[350500223,1737929434623,-500.0,0.00011972,2]
[350500224,1737929434632,-500.0,0.00011972,2]
[350500225,1737929434641,-500.0,0.00011972,2]
[350500226,1737929434650,-500.0,0.00011972,2]
[350500227,1737929434659,-500.0,0.00011972,2]
[350500228,1737929434669,-500.0,0.00011972,2]
[350500229,1737929434678,-500.0,0.00011972,2]
[350500230,1737929434687,-500.0,0.00011972,2]
[350500231,1737929434697,-500.0,0.00011972,2]
[350500232,1737929434706,-500.0,0.00011972,2]
[350500233,1737929434715,-500.0,0.00011972,2]
[350500234,1737929434724,-500.0,0.00011972,2]
[350500235,1737929434733,-500.0,0.00011972,2]
[350500236,1737929434744,-500.0,0.00011972,2]
[350500237,1737929434753,-500.0,0.00011972,2]
[350500238,1737929434762,-500.0,0.00011972,2]
[350500239,1737929434772,-500.0,0.00011972,2]
[350500240,1737929434780,-500.0,0.00011972,2]
[350500241,1737929434789,-500.0,0.00011972,2]
[350500242,1737929434798,-1000.0,0.00011972,2]
[350500243,1737929434807,-500.0,0.00011972,2]
[350500244,1737929434992,-500.0,0.00011972,2]
[350500245,1737929435002,-500.0,0.00011972,2]
[350500246,1737929435011,-500.0,0.00011972,2]
[350500247,1737929435020,-500.0,0.00011972,2]
[350500248,1737929435029,-500.0,0.00011972,2]